Departmental family,Entity,Date Paid,Expense type,Expense Area,Supplier,Transaction Number, Amount , Description ,Supplier Type, Expenditure Type 
UK Statistics Authority,Office for National Statistics,01-Jun-17,ICT Costs - Software,Digital Services Technology and Methodology,IBM United Kingdom Ltd,32042,"396,000.00", Information Management Services,Large, Programme 
UK Statistics Authority,Office for National Statistics,01-Jun-17,Travel and  Subsistence,Corporate Support,Redfern Travel,32044,"89,751.26", Travel and Accommodation Booking Service ,SME, Programme 
UK Statistics Authority,Office for National Statistics,01-Jun-17,ICT Outsourcing & Maintenance/Support,Finance,Phoenix Software Ltd,32046,"67,364.64", Desktop Licence Subscription,SME, Programme 
UK Statistics Authority,Office for National Statistics,01-Jun-17,Consultancy,Census,Bramble.CC,32049,"40,080.00", Information Management Services,SME, Programme 
UK Statistics Authority,Office for National Statistics,01-Jun-17,Recovery of Secondee Costs,Central Policy Secretariat,HMRC,32051,"25,561.99", Secondment Charges,Large, Programme 
UK Statistics Authority,Office for National Statistics,01-Jun-17,Non-IT Contractor Payments,Data Collection,NISRA,32052,"63,000.00", International Passenger Survey - Belfast Airport ,Large, Programme 
UK Statistics Authority,Office for National Statistics,01-Jun-17,Non-IT Contractor Payments,National Accounts and Economic Statistics,TNS UK Ltd,32055,"1,626.00", Statistical Services ,Large, Programme 
UK Statistics Authority,Office for National Statistics,01-Jun-17,Non-IT Contractor Payments,Social and Analysis,TNS UK Ltd,32055,"437,034.00", Statistical Services ,Large, Programme 
UK Statistics Authority,Office for National Statistics,01-Jun-17,Marketing & Media,Data Collection Support Services,Williams Lea Tag,32061,"94,584.48", Information Management Services,Large, Programme 
UK Statistics Authority,Office for National Statistics,01-Jun-17,ICT Outsourcing & Maintenance/Support,Digital Services Technology and Methodology,QA Ltd,32064,"216,990.00", Information Management Services,Large, Programme 
UK Statistics Authority,Office for National Statistics,01-Jun-17,Capital Major Works >25K,Property Newport,Paramount Office Interiors Ltd,32068,"394,388.95", Major Works Newport,SME, Programme 
UK Statistics Authority,Office for National Statistics,01-Jun-17,Major Works Over 25K,Property Newport,Paramount Office Interiors Ltd,32068,"285,592.01", Major Works Newport,SME, Programme 
UK Statistics Authority,Office for National Statistics,01-Jun-17,ICT Outsourcing & Maintenance/Support,Digital Services Technology and Methodology,Fujitsu Services Ltd,32069,"114,549.56", Information Management Services,Large, Programme 
UK Statistics Authority,Office for National Statistics,01-Jun-17,ICT - Support,Digital Services Technology and Methodology,Computacenter (UK) Limited,32072,"49,171.30", Information Management Services,Large, Programme 
UK Statistics Authority,Office for National Statistics,01-Jun-17,ICT - Technical Support,Digital Services Technology and Methodology,Computacenter (UK) Limited,32072,"12,220.40", Information Management Services,Large, Programme 
UK Statistics Authority,Office for National Statistics,01-Jun-17,ICT Outsourcing & Maintenance/Support,Digital Services Technology and Methodology,Computacenter (UK) Limited,32072,"7,631.66", Information Management Services,Large, Programme 
UK Statistics Authority,Office for National Statistics,01-Jun-17,IT Purchases > 2K,Digital Services Technology and Methodology,Computacenter (UK) Limited,32072,"44,408.04", Information Management Services,Large, Programme 
UK Statistics Authority,Office for National Statistics,01-Jun-17,Software Pool 4 Year,Digital Services Technology and Methodology,Computacenter (UK) Limited,32072,"31,817.14", Information Management Services,Large, Programme 
UK Statistics Authority,Office for National Statistics,01-Jun-17,Contractor Costs,Business Services and Development,Parity Resources Limited,32073,"5,116.32", Information Management Services,Large, Programme 
UK Statistics Authority,Office for National Statistics,01-Jun-17,Contractor Costs,Data Collection,Parity Resources Limited,32073,"2,314.44", Information Management Services,Large, Programme 
UK Statistics Authority,Office for National Statistics,01-Jun-17,Contractor Costs,Data Collection,Parity Resources Limited,32073,"9,081.47", Information Management Services,Large, Programme 
UK Statistics Authority,Office for National Statistics,01-Jun-17,Contractor Costs,Digital Services Technology and Methodology,Parity Resources Limited,32073,"3,350.92", Information Management Services,Large, Programme 
UK Statistics Authority,Office for National Statistics,01-Jun-17,Contractor Costs,Digital Services Technology and Methodology,Parity Resources Limited,32073,"12,663.00", Information Management Services,Large, Programme 
UK Statistics Authority,Office for National Statistics,01-Jun-17,Contractor Costs,Finance,Parity Resources Limited,32073,"7,738.50", Information Management Services,Large, Programme 
UK Statistics Authority,Office for National Statistics,01-Jun-17,Contractor Costs,Finance,Parity Resources Limited,32073,"4,924.50", Information Management Services,Large, Programme 
UK Statistics Authority,Office for National Statistics,01-Jun-17,Contractor Costs,Organisational Development,Parity Resources Limited,32073,"7,738.50", Information Management Services,Large, Programme 
UK Statistics Authority,Office for National Statistics,01-Jun-17,Contractor Costs,Portfolio Design,Parity Resources Limited,32073,"9,689.58", Information Management Services,Large, Programme 
UK Statistics Authority,Office for National Statistics,01-Jun-17,ICT Outsourcing & Maintenance/Support,Digital Services Technology and Methodology,Parity Resources Limited,32073,"9,919.07", Information Management Services,Large, Programme 
UK Statistics Authority,Office for National Statistics,01-Jun-17,Short-Term Contract & Agency Staff - Full Cost,Census,Parity Resources Limited,32073,"3,253.08", Information Management Services,Large, Programme 
UK Statistics Authority,Office for National Statistics,01-Jun-17,Short-Term Contract & Agency Staff - Full Cost,Data Collection,Parity Resources Limited,32073,696.19, Information Management Services,Large, Programme 
UK Statistics Authority,Office for National Statistics,01-Jun-17,Short-Term Contract & Agency Staff - Full Cost,Data Collection,Parity Resources Limited,32073,"3,749.57", Information Management Services,Large, Programme 
UK Statistics Authority,Office for National Statistics,01-Jun-17,Short-Term Contract & Agency Staff - Full Cost,Data Collection,Parity Resources Limited,32073,"6,999.55", Information Management Services,Large, Programme 
UK Statistics Authority,Office for National Statistics,01-Jun-17,Short-Term Contract & Agency Staff - Full Cost,Data Collection,Parity Resources Limited,32073,"2,427.26", Information Management Services,Large, Programme 
UK Statistics Authority,Office for National Statistics,01-Jun-17,Short-Term Contract & Agency Staff - Full Cost,Data Collection,Parity Resources Limited,32073,"3,136.29", Information Management Services,Large, Programme 
UK Statistics Authority,Office for National Statistics,01-Jun-17,Short-Term Contract & Agency Staff - Full Cost,Digital Services Technology and Methodology,Parity Resources Limited,32073,761.2, Information Management Services,Large, Programme 
UK Statistics Authority,Office for National Statistics,01-Jun-17,Short-Term Contract & Agency Staff - Full Cost,National Accounts and Economic Statistics,Parity Resources Limited,32073,"4,189.14", Information Management Services,Large, Programme 
UK Statistics Authority,Office for National Statistics,01-Jun-17,Contractor Costs,Census,Brook Street (UK) Limited,32076,"355,190.46", Census RTP Services ,Large, Programme 
UK Statistics Authority,Office for National Statistics,01-Jun-17,Lone Worker Devices,Data Collection,Brook Street (UK) Limited,32076,"2,169.72", Census RTP Services ,Large, Programme 
UK Statistics Authority,Office for National Statistics,01-Jun-17,Contractor Costs,Digital Services Technology and Methodology,Valtech Ltd,32081,"186,037.50", Information Management Services,Large, Programme 
UK Statistics Authority,Office for National Statistics,01-Jun-17,ICT Outsourcing & Maintenance/Support,Central Support,Valtech Ltd,32081,"144,474.00", Information Management Services,Large, Programme 
UK Statistics Authority,Office for National Statistics,01-Jun-17,ICT Outsourcing & Maintenance/Support,Digital Services Technology and Methodology,Valtech Ltd,32081,"86,514.00", Information Management Services,Large, Programme 
UK Statistics Authority,Office for National Statistics,01-Jun-17,ICT Outsourcing & Maintenance/Support,Digital Services Technology and Methodology,Valtech Ltd,32081,"79,428.00", Information Management Services,Large, Programme 
UK Statistics Authority,Office for National Statistics,01-Jun-17,Telecommunications,Digital Services Technology and Methodology,BT Global Services,32099,"45,881.80", Information Management Services,Large, Programme 
UK Statistics Authority,Office for National Statistics,01-Jun-17,ICT Outsourcing & Maintenance/Support,Digital Services Technology and Methodology,Mango Solutions,32100,"41,120.04", Information Management Services,SME, Programme 
UK Statistics Authority,Office for National Statistics,01-Jun-17,ICT Security Services,Digital Services Technology and Methodology,Leonardo MW Ltd,32107,"35,560.70", Information Management Services,SSME, Programme 
UK Statistics Authority,Office for National Statistics,01-Jun-17,Consultancy Costs,Digital Services Technology and Methodology,E Synergy Solutions,32108,"84,876.00", Information Management Services,SME, Programme 
UK Statistics Authority,Office for National Statistics,01-Jun-17,ICT Outsourcing & Maintenance/Support,Digital Services Technology and Methodology,Cloudera Inc,32109,"250,500.00", Cloud Services,Large, Programme 
UK Statistics Authority,Office for National Statistics,01-Jun-17,High Street Vouchers,Data Collection,NatCen Social Research,32110,"30,956.07", Post Office Vouchers ,Large, Programme 
UK Statistics Authority,Office for National Statistics,01-Jun-17,Social Surveys,Data Collection,NatCen Social Research,32110,"529,744.19", Statistical Services ,Large, Programme 
UK Statistics Authority,Office for National Statistics,01-Jun-17,ICT Costs,Digital Services Technology and Methodology,Crown Hosting Data Centres Limited,32111,"85,902.61", Information Management Services,SME, Programme 
UK Statistics Authority,Office for National Statistics,01-Jun-17,ICT Outsourcing & Maintenance/Support,Digital Services Technology and Methodology,Crown Hosting Data Centres Limited,32111,"2,609.00", Information Management Services,SME, Programme 
UK Statistics Authority,Office for National Statistics,01-Jun-17,Consultancy Costs,Census,Engine Partners UK Llp,32117,"17,415.60"," Consultation, Census Branding",Large, Programme 
UK Statistics Authority,UK Statistics Authority,01-Jun-17,Marketing & Media,UK Statistics Authority,Engine Partners UK Llp,32117,"13,861.20", Statistical Regulation Logo,Large, Programme 
UK Statistics Authority,Office for National Statistics,01-Jun-17,ICT Outsourcing & Maintenance/Support,Digital Services Technology and Methodology,Amazon Web Services Inc,30000426,"25,922.37", Information Management Services,Large, Programme 
UK Statistics Authority,Office for National Statistics,01-Jun-17,ICT Outsourcing & Maintenance/Support,Digital Services Technology and Methodology,Insight Direct,30000427,"806,491.62", Information Management Services,Large, Programme 
UK Statistics Authority,Office for National Statistics,02-Jun-17,ICT Outsourcing & Maintenance/Support,Digital Services Technology and Methodology,Somerford Associates,32131,"54,000.00", Information Management Services,Large, Programme 
UK Statistics Authority,Office for National Statistics,05-Jun-17,Telecommunications,Data Collection,BT Global Services,32768,"6,270.44", Information Management Services,Large, Programme 
UK Statistics Authority,Office for National Statistics,05-Jun-17,Telecommunications,Digital Services Technology and Methodology,BT Global Services,32768,"25,152.00", Information Management Services,Large, Programme 
UK Statistics Authority,Office for National Statistics,06-Jun-17,Consultancy Costs,Digital Services Technology and Methodology,E Synergy Solutions,32783,"29,046.00", Information Management Services,SME, Programme 
UK Statistics Authority,Office for National Statistics,06-Jun-17,Contractor Costs,Digital Services Technology and Methodology,E Synergy Solutions,32783,"7,920.00", Information Management Services,SME, Programme 
UK Statistics Authority,Office for National Statistics,06-Jun-17,Travel and  Subsistence,Corporate Support,Calder World of Travel,32796,"27,271.51", Trainline Booking Services ,SME, Programme 
UK Statistics Authority,Office for National Statistics,07-Jun-17,ICT  Outsourcing & Maintenance/Support,Digital Services Technology and Methodology,Mastek,32809,"83,310.00", Information Management Services,Large, Programme 
UK Statistics Authority,Office for National Statistics,07-Jun-17,High Street Vouchers,Data Collection,Park Retail Ltd,32814,"38,287.96", Social Surveys Incentive Vouchers,Large, Programme 
UK Statistics Authority,Office for National Statistics,07-Jun-17,ICT Outsourcing & Maintenance/Support,Data Collection,Equiniti Limited,32820,"47,212.80", Information Management Services,Large, Programme 
UK Statistics Authority,Office for National Statistics,07-Jun-17,Recovery of Secondee Costs -  Other Government Departments,Data Collection,HMRC,32821,"27,974.10", Secondment Charges,Large, Programme 
UK Statistics Authority,Office for National Statistics,07-Jun-17,ICT Outsourcing & Maintenance/Support,Census,Ipsos MORI,32822,"4,264.80", 2021 Questionnaire Design ,Large, Programme 
UK Statistics Authority,Office for National Statistics,07-Jun-17,Surveys,Census,Ipsos MORI,32822,"24,356.40", 2021 Questionnaire Design ,Large, Programme 
UK Statistics Authority,Office for National Statistics,07-Jun-17,Social Surveys,National Accounts and Economic Statistics,TNS UK Ltd,32823,"175,864.80", Statistical Services ,Large, Programme 
UK Statistics Authority,Office for National Statistics,07-Jun-17,Childcare Services,Corporate Support,Computershare Voucher Services,32828,"36,311.23", Childcare Vouchers ,Large, Programme 
UK Statistics Authority,Office for National Statistics,07-Jun-17,Childcare Services,Finance,Computershare Voucher Services,32828,"2,832.28", Childcare Vouchers ,Large, Programme 
UK Statistics Authority,Office for National Statistics,08-Jun-17,Consultancy Costs,Data Collection,Deloitte,33326,"100,320.00", Information Management Services,SME, Programme 
UK Statistics Authority,Office for National Statistics,08-Jun-17,ICT - Laptop Delivery,Digital Services Technology and Methodology,Insight Direct,33329,"185,796.00", Information Management Services,Large, Programme 
UK Statistics Authority,Office for National Statistics,08-Jun-17,ICT Outsourcing & Maintenance/Support,Digital Services Technology and Methodology,Crown Hosting Data Centres Limited,33339,"14,062.08", Information Management Services,SME, Programme 
UK Statistics Authority,Office for National Statistics,08-Jun-17,ICT Outsourcing & Maintenance/Support,Digital Services Technology and Methodology,Crown Hosting Data Centres Limited,33339,"19,179.00", Information Management Services,SME, Programme 
UK Statistics Authority,Office for National Statistics,08-Jun-17,Consultancy Costs,Digital Services Technology and Methodology,Sopra Steria,33345,"13,387.70", Information Management Services,Large, Programme 
UK Statistics Authority,Office for National Statistics,08-Jun-17,Contractor Costs,Census,Sopra Steria,33345,"8,384.88", Information Management Services,Large, Programme 
UK Statistics Authority,Office for National Statistics,08-Jun-17,Contractor Costs,Digital Services Technology and Methodology,Sopra Steria,33345,"7,550.45", Information Management Services,Large, Programme 
UK Statistics Authority,Office for National Statistics,08-Jun-17,Postage,Data Collection,UK Mail,33346,"25,158.81", Outgoing Postage ,Large, Programme 
UK Statistics Authority,Office for National Statistics,08-Jun-17,Capital Works > 25K,Digital Services Technology and Methodology,HMRC,33347,"25,561.99", Fast Stream Programme Costs,Large, Programme 
UK Statistics Authority,Office for National Statistics,09-Jun-17,Capital Major Works > 25K,Property Newport,Central Roofing Ltd,33354,"148,335.27", Newport Major Works,SME, Programme 
UK Statistics Authority,Office for National Statistics,09-Jun-17,Major Works Over 25K,Property Newport,Central Roofing Ltd,33354,"43,724.67", Newport Major Works,SME, Programme 
UK Statistics Authority,Office for National Statistics,09-Jun-17,Titchfield Car Park Rent,Property Titchfield,Eaton Aerospace Limited,33355,"25,624.80", Car Parking Facilites Rent,Large, Programme 
UK Statistics Authority,Office for National Statistics,12-Jun-17,ICT Outsourcing & Maintenance/Support,Digital Services Technology and Methodology,QA Ltd,33710,"64,260.00", Information Management Services,Large, Programme 
UK Statistics Authority,Office for National Statistics,12-Jun-17,ICT Outsourcing & Maintenance/Support,Digital Services Technology and Methodology,Computacenter (UK) Limited,33712,"19,176.40", Information Management Services,Large, Programme 
UK Statistics Authority,Office for National Statistics,12-Jun-17,IT Purchases > 2K,Digital Services Technology and Methodology,Computacenter (UK) Limited,33712,"30,329.67", Information Management Services,Large, Programme 
UK Statistics Authority,Office for National Statistics,13-Jun-17,ICT Outsourcing & Maintenance/Support,Central Support,Methods Digital Ltd,33923,"10,350.00", Information Management Services,Large, Programme 
UK Statistics Authority,Office for National Statistics,13-Jun-17,ICT Outsourcing & Maintenance/Support,Digital Services Technology and Methodology,Methods Digital Ltd,33923,"87,472.50", Information Management Services,Large, Programme 
UK Statistics Authority,Office for National Statistics,13-Jun-17,Capital Major Works > 25K,Property Newport,Paramount Office Interiors Ltd,33927,"232,026.65", Major Works Newport,SME, Programme 
UK Statistics Authority,Office for National Statistics,14-Jun-17,Contractor Costs,Business Services and Development,Hays,34354,"3,069.35", Information Management Services,Large, Programme 
UK Statistics Authority,Office for National Statistics,14-Jun-17,Short-Term Contract & Agency Staff - Full Cost,Business Services and Development,Hays,34354,"1,999.87", Information Management Services,Large, Programme 
UK Statistics Authority,Office for National Statistics,14-Jun-17,Short-Term Contract & Agency Staff - Full Cost,Census,Hays,34354,"3,244.75", Information Management Services,Large, Programme 
UK Statistics Authority,Office for National Statistics,14-Jun-17,Short-Term Contract & Agency Staff - Full Cost,Data Collection,Hays,34354,"7,442.06", Information Management Services,Large, Programme 
UK Statistics Authority,Office for National Statistics,14-Jun-17,Short-Term Contract & Agency Staff - Full Cost,Data Collection,Hays,34354,"4,491.35", Information Management Services,Large, Programme 
UK Statistics Authority,Office for National Statistics,14-Jun-17,Short-Term Contract & Agency Staff - Full Cost,Data Collection Support Services,Hays,34354,"1,836.58", Information Management Services,Large, Programme 
UK Statistics Authority,Office for National Statistics,14-Jun-17,Short-Term Contract & Agency Staff - Full Cost,Digital Services Technology and Methodology,Hays,34354,989.56, Information Management Services,Large, Programme 
UK Statistics Authority,Office for National Statistics,14-Jun-17,Short-Term Contract & Agency Staff - Full Cost,National Accounts and Economic Statistics,Hays,34354,"8,958.95", Information Management Services,Large, Programme 
UK Statistics Authority,Office for National Statistics,14-Jun-17,Short-Term Contract & Agency Staff - Full Cost,People Solutions,Hays,34354,"1,036.19", Information Management Services,Large, Programme 
UK Statistics Authority,Office for National Statistics,14-Jun-17,Short-Term Contract & Agency Staff - Full Cost,Social and Analysis,Hays,34354,"4,878.66", Information Management Services,Large, Programme 
UK Statistics Authority,Office for National Statistics,14-Jun-17,Travel and  Subsistence,Corporate Support,Redfern Travel,34363,"56,091.81", Travel and Accommodation Booking Service ,SME, Programme 
UK Statistics Authority,Office for National Statistics,14-Jun-17,Procurement Card,Corporate Support,Royal Bank of Scotland,34375,"58,576.30", Multiple Procurement Card Purchases ,Large, Programme 
UK Statistics Authority,Office for National Statistics,14-Jun-17,Stationery,Corporate Support,Royal Bank of Scotland,34375,"10,392.58", Multiple Procurement Card Stationery,Large, Programme 
UK Statistics Authority,Office for National Statistics,15-Jun-17,ICT Costs - Cyber Security,Digital Services Technology and Methodology,Leonardo MW Ltd,34382,"173,870.40", Information Management Services,SME, Programme 
UK Statistics Authority,Office for National Statistics,15-Jun-17,High Street Vouchers,Data Collection,Park Retail Ltd,34385,"26,534.09", Social Surveys Incentive Vouchers,Large, Programme 
UK Statistics Authority,Office for National Statistics,15-Jun-17,ICT  Outsourcing & Maintenance/Support,Central Support,Valtech Ltd,34400,"9,360.00", Information Management Services,Large, Programme 
UK Statistics Authority,Office for National Statistics,15-Jun-17,ICT Outsourcing & Maintenance/Support,Business Services and Development,Valtech Ltd,34400,"22,080.00", Information Management Services,Large, Programme 
UK Statistics Authority,Office for National Statistics,15-Jun-17,ICT Outsourcing & Maintenance/Support,Digital Services Technology and Methodology,Valtech Ltd,34400,"14,832.00", Information Management Services,Large, Programme 
UK Statistics Authority,Office for National Statistics,15-Jun-17,Travel and  Subsistence,Digital Services Technology and Methodology,Valtech Ltd,34400,"18,864.00", Information Management Services,Large, Programme 
UK Statistics Authority,Office for National Statistics,16-Jun-17,Non-IT Contractual Payments,Social and Analysis,Ricardo-Aea Ltd,34740,"51,106.80", Information Management Services,SME, Programme 
UK Statistics Authority,Office for National Statistics,16-Jun-17,Capitalised Consultancy - Non-IT,Office of the Chief Economic Adviser,NIESR,34742,"293,153.10", Information Management Services,SME, Programme 
UK Statistics Authority,Office for National Statistics,16-Jun-17,Contractor Costs,Digital Services Technology and Methodology,Valtech Ltd,34748,"146,005.50", Information Management Services,Large, Programme 
UK Statistics Authority,Office for National Statistics,20-Jun-17,ICT Outsourcing & Maintenance/Support,Digital Services Technology and Methodology,Certus Solutions Consulting Services Ltd,34991,"96,060.00", Information Management Services,SME, Programme 
UK Statistics Authority,Office for National Statistics,20-Jun-17,Facilities Management Contract Payments,Corporate Support,Vinci Construction UK Limited,34994,"134,989.82", Facilities Management ,Large, Programme 
UK Statistics Authority,Office for National Statistics,20-Jun-17,ICT Outsourcing & Maintenance/Support,Finance,Phoenix Software Ltd,34998,"57,120.00", Desktop Licence Subscription,SME, Programme 
UK Statistics Authority,Office for National Statistics,20-Jun-17,Furniture Costing > 2k,Property Newport,The Senator Group,35000,"33,981.29", Major Works Newport,Large, Programme 
UK Statistics Authority,Office for National Statistics,20-Jun-17,ICT Outsourcing & Maintenance/Support,Data Science Campus,Mango Solutions,35008,"67,158.00", Information Management Services,SME, Programme 
UK Statistics Authority,Office for National Statistics,20-Jun-17,ICT Outsourcing & Maintenance/Support,Digital Services Technology and Methodology,Mango Solutions,35008,"63,231.48", Information Management Services,SME, Programme 
UK Statistics Authority,Office for National Statistics,20-Jun-17,London Electricity Payment,Property London,EDF Energy,30000433,"32,353.48", London Electricity Charges  ,Large, Programme 
UK Statistics Authority,Office for National Statistics,20-Jun-17,Newport Electricity Payment,Property Newport,EDF Energy,30000434,"27,373.23", Newport Electricity Charges  ,Large, Programme 
UK Statistics Authority,Office for National Statistics,20-Jun-17,Titchfield Electricity Payment,Property Titchfield,EDF Energy,30000435,"28,039.85", Titchfield Electricity Charges  ,Large, Programme 
UK Statistics Authority,Office for National Statistics,21-Jun-17,ICT - Managed Print Services,Digital Services Technology and Methodology,Lexmark International Ltd,35465,"49,823.63", Information Management Services,Large, Programme 
UK Statistics Authority,Office for National Statistics,21-Jun-17,Drummond Gate Rent,Property London,D G Lease Limited,35479,"1,010,250.00", Drummond Gate Rent,SME, Programme 
UK Statistics Authority,Office for National Statistics,21-Jun-17,ICT Outsourcing & Maintenance/Support,Digital Services Technology and Methodology,Amazon Web Services Inc,30000443,"25,628.57", Information Management Services,Large, Programme 
UK Statistics Authority,Office for National Statistics,23-Jun-17,ICT Outsourcing & Maintenance/Support,Digital Services Technology and Methodology,Eduserv,35847,"37,014.10", Information Management Services,SME, Programme 
UK Statistics Authority,Office for National Statistics,26-Jun-17,Facilities Management Contract Payments,Corporate Support,Vinci Construction UK Limited,35857,"293,507.02", Facilities Management ,Large, Programme 
UK Statistics Authority,Office for National Statistics,26-Jun-17,Training & Development,Business Services and Development,Cabinet Office,35859,"6,242.40", Civil Service Recruitment Fees,Large, Programme 
UK Statistics Authority,Office for National Statistics,26-Jun-17,Training & Development,Census,Cabinet Office,35859,"9,000.00", Civil Service Recruitment Fees,Large, Programme 
UK Statistics Authority,Office for National Statistics,26-Jun-17,Training & Development,Central Support,Cabinet Office,35859,"13,800.00", Civil Service Recruitment Fees,Large, Programme 
UK Statistics Authority,Office for National Statistics,26-Jun-17,Training & Development,Director General,Cabinet Office,35859,"9,000.00", Civil Service Recruitment Fees,Large, Programme 
UK Statistics Authority,Office for National Statistics,26-Jun-17,Training & Development,Social and Analysis,Cabinet Office,35859,"9,000.00", Civil Service Recruitment Fees,Large, Programme 
UK Statistics Authority,Office for National Statistics,26-Jun-17,Travel and  Subsistence,Corporate Support,Redfern Travel,35862,"50,463.53", Travel and Accommodation Booking Service ,SME, Programme 
UK Statistics Authority,Office for National Statistics,26-Jun-17,Accommodation & Building Management,Data Collection,Heathrow Airport,35863,"28,463.56", International Passenger Survey - Heathrow ,Large, Programme 
UK Statistics Authority,Office for National Statistics,26-Jun-17,ICT Outsourcing & Maintenance/Support,Digital Services Technology and Methodology,HMRC,35865,"16,109.76", Fast Stream Programme Costs,Large, Programme 
UK Statistics Authority,Office for National Statistics,26-Jun-17,Recovery of Secondee Costs,Data Collection,HMRC,35865,"25,562.00", Fast Stream Programme Costs,Large, Programme 
UK Statistics Authority,Office for National Statistics,26-Jun-17,Surveys,Social and Analysis,TNS UK Ltd,35866,"407,653.20", Statistical Services ,Large, Programme 
UK Statistics Authority,Office for National Statistics,26-Jun-17,ICT - Support,Digital Services Technology and Methodology,Computacenter (UK) Limited,35869,"258,331.30", Information Management Services,Large, Programme 
UK Statistics Authority,Office for National Statistics,26-Jun-17,ICT Outsourcing & Maintenance/Support,Digital Services Technology and Methodology,Computacenter (UK) Limited,35869,"7,058.88", Information Management Services,Large, Programme 
UK Statistics Authority,Office for National Statistics,26-Jun-17,Non-IT Contractor Payments,Census,Brook Street (UK) Limited,35870,"158,249.00", Census RTP Services ,Large, Programme 
UK Statistics Authority,Office for National Statistics,27-Jun-17,Telecommunications,Data Collection,BT Global Services,35966,"2,838.26", Information Management Services,Large, Programme 
UK Statistics Authority,Office for National Statistics,27-Jun-17,Telecommunications,Digital Services Technology and Methodology,BT Global Services,35966,"27,672.00", Information Management Services,Large, Programme 
UK Statistics Authority,Office for National Statistics,27-Jun-17,Consultancy Costs,Digital Services Technology and Methodology,Parity Resources Limited,35974,"2,686.08", Information Management Services,Large, Programme 
UK Statistics Authority,Office for National Statistics,27-Jun-17,Contractor Costs,Data Collection,Parity Resources Limited,35974,"6,380.94", Information Management Services,Large, Programme 
UK Statistics Authority,Office for National Statistics,27-Jun-17,Contractor Costs,Digital Services Technology and Methodology,Parity Resources Limited,35974,32.85, Information Management Services,Large, Programme 
UK Statistics Authority,Office for National Statistics,27-Jun-17,Contractor Costs,Digital Services Technology and Methodology,Parity Resources Limited,35974,"10,746.84", Information Management Services,Large, Programme 
UK Statistics Authority,Office for National Statistics,27-Jun-17,Contractor Costs,Office of the Chief Economic Adviser,Parity Resources Limited,35974,"5,709.25", Information Management Services,Large, Programme 
UK Statistics Authority,Office for National Statistics,27-Jun-17,Contractor Costs,Portfolio Design,Parity Resources Limited,35974,63.33, Information Management Services,Large, Programme 
UK Statistics Authority,Office for National Statistics,27-Jun-17,ICT Outsourcing & Maintenance/Support,Digital Services Technology and Methodology,Parity Resources Limited,35974,"6,472.78", Information Management Services,Large, Programme 
UK Statistics Authority,Office for National Statistics,27-Jun-17,Short-Term Contract & Agency Staff - Full Cost,Business Services and Development,Parity Resources Limited,35974,"3,280.73", Information Management Services,Large, Programme 
UK Statistics Authority,Office for National Statistics,27-Jun-17,Short-Term Contract & Agency Staff - Full Cost,Census,Parity Resources Limited,35974,"4,037.27", Information Management Services,Large, Programme 
UK Statistics Authority,Office for National Statistics,27-Jun-17,Short-Term Contract & Agency Staff - Full Cost,Data Collection,Parity Resources Limited,35974,"6,257.42", Information Management Services,Large, Programme 
UK Statistics Authority,Office for National Statistics,27-Jun-17,Short-Term Contract & Agency Staff - Full Cost,Data Collection,Parity Resources Limited,35974,"2,385.01", Information Management Services,Large, Programme 
UK Statistics Authority,Office for National Statistics,27-Jun-17,Short-Term Contract & Agency Staff - Full Cost,Data Collection,Parity Resources Limited,35974,"1,684.02", Information Management Services,Large, Programme 
UK Statistics Authority,Office for National Statistics,27-Jun-17,Short-Term Contract & Agency Staff - Full Cost,Data Collection,Parity Resources Limited,35974,"1,362.54", Information Management Services,Large, Programme 
UK Statistics Authority,Office for National Statistics,27-Jun-17,Short-Term Contract & Agency Staff - Full Cost,Data Collection Support Services,Parity Resources Limited,35974,765.84, Information Management Services,Large, Programme 
UK Statistics Authority,Office for National Statistics,27-Jun-17,Short-Term Contract & Agency Staff - Full Cost,Digital Services Technology and Methodology,Parity Resources Limited,35974,"2,375.90", Information Management Services,Large, Programme 
UK Statistics Authority,Office for National Statistics,27-Jun-17,Short-Term Contract & Agency Staff - Full Cost,Digital Services Technology and Methodology,Parity Resources Limited,35974,12.18, Information Management Services,Large, Programme 
UK Statistics Authority,Office for National Statistics,28-Jun-17,Consultancy Costs,Digital Services Technology and Methodology,E Synergy Solutions,35982,"32,610.00", Information Management Services,SME, Programme 
UK Statistics Authority,Office for National Statistics,28-Jun-17,Contractor Costs,Digital Services Technology and Methodology,E Synergy Solutions,35982,"16,620.00", Information Management Services,SME, Programme 
UK Statistics Authority,Office for National Statistics,28-Jun-17,Contractor Costs,Finance,Parity Resources Limited,36010,290.64, Information Management Services,Large, Programme 
UK Statistics Authority,Office for National Statistics,28-Jun-17,Contractor Costs,Finance,Parity Resources Limited,36010,"2,814.00", Information Management Services,Large, Programme 
UK Statistics Authority,Office for National Statistics,28-Jun-17,Short-Term Contract & Agency Staff - Full Cost,Census,Parity Resources Limited,36010,"7,612.26", Information Management Services,Large, Programme 
UK Statistics Authority,Office for National Statistics,28-Jun-17,Short-Term Contract & Agency Staff - Full Cost,Census,Parity Resources Limited,36010,891.51, Information Management Services,Large, Programme 
UK Statistics Authority,Office for National Statistics,28-Jun-17,Short-Term Contract & Agency Staff - Full Cost,Data Collection,Parity Resources Limited,36010,937.46, Information Management Services,Large, Programme 
UK Statistics Authority,Office for National Statistics,28-Jun-17,Short-Term Contract & Agency Staff - Full Cost,Data Collection,Parity Resources Limited,36010,"3,766.67", Information Management Services,Large, Programme 
UK Statistics Authority,Office for National Statistics,28-Jun-17,Short-Term Contract & Agency Staff - Full Cost,Data Collection,Parity Resources Limited,36010,"2,116.99", Information Management Services,Large, Programme 
UK Statistics Authority,Office for National Statistics,28-Jun-17,Short-Term Contract & Agency Staff - Full Cost,Data Collection,Parity Resources Limited,36010,749.09, Information Management Services,Large, Programme 
UK Statistics Authority,Office for National Statistics,28-Jun-17,Short-Term Contract & Agency Staff - Full Cost,National Accounts and Economic Statistics,Parity Resources Limited,36010,"3,440.02", Information Management Services,Large, Programme 
UK Statistics Authority,Office for National Statistics,28-Jun-17,Short-Term Contract & Agency Staff - Full Cost,PRESS OFFICE,Parity Resources Limited,36010,"2,556.86", Information Management Services,Large, Programme 
